fUSD/lending_fUSD_20260107
["ID","MTS","AMOUNT","RATE_DAILY","PERIOD"]
[400754311,1767815442077,-1000.0,0.00015621,2]
[400754313,1767815442087,-767.0,0.00015621,2]
[400754315,1767815442097,-1286.2212164,0.00015624,2]
[400754317,1767815442107,-767.0,0.00015676,2]
[400754319,1767815442118,-1705.31,0.00015704,2]
[400754322,1767815442130,-433.0,0.00015729,2]
[400754324,1767815442140,-767.0,0.00015731,2]
[400754326,1767815442149,-322.6107,0.00015744,2]
[400754327,1767815442158,-500.0,0.00015744,2]
[400754329,1767815442168,-500.0,0.00015744,2]
[400754332,1767815442178,-500.0,0.00015744,2]
[400754334,1767815442188,-151.55763012,0.00015744,2]
[400754336,1767815442197,-500.0,0.00015744,2]
[400754338,1767815442208,-1500.0,0.00015744,2]
[400754340,1767815442222,-500.0,0.00015744,2]
[400754342,1767815442231,-1500.0,0.00015744,2]
[400754344,1767815442240,-500.0,0.00015744,2]
[400754346,1767815442250,-1500.0,0.00015744,2]
[400754348,1767815442259,-500.0,0.00015744,2]
[400754350,1767815442268,-578.20924308,0.00015744,2]
[400754352,1767815442278,-1500.0,0.00015744,2]
[400754354,1767815442287,-500.0,0.00015744,2]
[400754356,1767815442297,-1500.0,0.00015744,2]
[400754358,1767815442307,-500.0,0.00015744,2]
[400754360,1767815442316,-500.0,0.00015744,2]
[400754362,1767815442326,-1500.0,0.00015744,2]
[400754364,1767815442335,-574.12855637,0.00015744,2]
[400754366,1767815442344,-500.0,0.00015744,2]
[400754368,1767815442354,-500.0,0.00015744,2]
[400754370,1767815442363,-1500.0,0.00015744,2]
[400754372,1767815442373,-500.0,0.00015744,2]
[400754374,1767815442383,-500.0,0.00015744,2]
[400754376,1767815442392,-1500.0,0.00015744,2]
[400754378,1767815442402,-500.0,0.00015744,2]
[400754380,1767815442415,-1500.0,0.00015744,2]
[400754382,1767815442425,-500.0,0.00015744,2]
[400754384,1767815442435,-1500.0,0.00015744,2]
[400754386,1767815442444,-500.0,0.00015744,2]
[400754388,1767815442454,-500.0,0.00015744,2]
[400754390,1767815442463,-1500.0,0.00015744,2]
[400754392,1767815442473,-500.0,0.00015744,2]
[400754395,1767815442484,-500.0,0.00015744,2]
[400754397,1767815442493,-500.0,0.00015744,2]
[400754399,1767815442503,-500.0,0.00015744,2]
[400754401,1767815442513,-500.0,0.00015744,2]
[400754403,1767815442523,-500.0,0.00015744,2]
[400754405,1767815442532,-448.72451731,0.00015744,2]
[400754407,1767815442542,-500.0,0.00015744,2]
[400754409,1767815442551,-500.0,0.00015744,2]
[400754411,1767815442561,-500.0,0.00015744,2]
[400754413,1767815442571,-500.0,0.00015744,2]
[400754415,1767815442580,-500.0,0.00015744,2]
[400754417,1767815442590,-500.0,0.00015744,2]
[400754419,1767815442603,-620.0,0.00015744,2]
[400754421,1767815442613,-500.0,0.00015744,2]
[400754424,1767815442623,-250.0,0.00015744,2]
[400754426,1767815442634,-500.0,0.00015744,2]
[400754428,1767815442643,-250.0,0.00015744,2]
[400754430,1767815442653,-2000.0,0.00015744,2]
[400754432,1767815442662,-500.0,0.00015744,2]
[400754434,1767815442672,-2000.0,0.00015744,2]
[400754435,1767815442683,-2000.0,0.00015744,2]
[400754437,1767815442693,-2000.0,0.00015744,2]
[400754439,1767815442703,-2000.0,0.00015744,2]
[400754440,1767815442713,-200.0,0.00015744,2]
[400754443,1767815442722,-2000.0,0.00015744,2]
[400754445,1767815442733,-207.4,0.00015744,2]
[400754447,1767815442743,-2000.0,0.00015744,2]
[400754449,1767815442753,-215.0738,0.00015744,2]
[400754451,1767815442763,-2000.0,0.00015744,2]
[400754453,1767815442773,-223.0315306,0.00015744,2]
[400754455,1767815442785,-2000.0,0.00015744,2]
[400754457,1767815442794,-231.28369723,0.00015744,2]
[400754459,1767815442807,-2000.0,0.00015744,2]
[400754461,1767815442816,-239.84119403,0.00015744,2]
[400754463,1767815442827,-2000.0,0.00015744,2]
[400754465,1767815442837,-248.71531821,0.00015744,2]
[400754467,1767815442847,-257.91778498,0.00015744,2]
[400754469,1767815442856,-267.46074303,0.00015744,2]
[400754471,1767815442866,-277.35679052,0.00015744,2]
[400754473,1767815442877,-26694.90869383,0.00015752,2]
[400754475,1767815442886,-767.0,0.00015786,2]
[400754477,1767815442896,-435.92,0.00015815,2]
[400754479,1767815442906,-767.0,0.0001584,2]
[400754481,1767815442916,-610.85,0.0001585,2]
[400754483,1767815442926,-500.0,0.00015866,2]
[400754485,1767815442935,-784.1858208,0.00015895,2]
[400754487,1767815442945,-3383.33666527,0.000159,2]
[400754489,1767815442954,-1705.31,0.00015978,2]
[400754491,1767815442964,-587.0,0.00016114,2]
[400754493,1767815442973,-9247.15,0.00016116,2]
[400754495,1767815442983,-4950.3485623,0.00016168,2]
[400754497,1767815442995,-281.83931929,0.00016168,2]
[400754499,1767815443005,-4203.3669574,0.00016168,2]
[400754501,1767815443014,-500.0,0.00016168,2]
[400754503,1767815443025,-610.85,0.00016168,2]
[400754505,1767815443034,-411.91622264,0.00016168,2]
[400754507,1767815443044,-1500.0,0.00016168,2]
[400754509,1767815443056,-257.16378022,0.00016168,2]
[400754512,1767815443067,-1529.13192156,0.00016168,2]
[400754514,1767815443077,-556.0741427,0.00016168,2]
[400754516,1767815443086,-1500.0,0.00016168,2]
[400754518,1767815443097,-1500.0,0.00016168,2]
[400754520,1767815443107,-1500.0,0.00016168,2]
[400754522,1767815443117,-821.82288534,0.00016168,2]
[400754524,1767815443127,-515.65451742,0.00016168,2]
[400754526,1767815443138,-949.69083076,0.00016168,2]
[400754528,1767815443147,-1500.0,0.00016168,2]
[400754530,1767815443157,-1500.0,0.00016168,2]
[400754532,1767815443167,-1500.0,0.00016168,2]
[400754534,1767815443176,-1500.0,0.00016168,2]
[400754536,1767815443186,-1500.0,0.00016168,2]
[400754538,1767815443196,-1500.0,0.00016168,2]
[400754540,1767815443206,-1628.37348131,0.00016168,2]
[400754542,1767815443215,-1509.96734995,0.00016168,2]
[400754544,1767815443224,-500.0,0.00016179,2]
[400754545,1767815443234,-26694.90869383,0.00016181,2]
[400754546,1767815443244,-2351.0,0.00016225,2]
[400754547,1767815443253,-1705.31,0.00016252,2]
[400754548,1767815443263,-595.37131296,0.00016292,2]
[400754549,1767815443272,-181.06,0.00016331,2]
[400754550,1767815443281,-634.29540262,0.00016338,2]
[400754551,1767815443291,-154.81770253,0.00016338,2]
[400754552,1767815443300,-500.0,0.00016437,2]
[400754553,1767815443309,-500.0,0.00016437,2]
[400754554,1767815443318,-610.85,0.00016437,2]
[400754555,1767815443328,-531.52006841,0.00016437,2]
[400754556,1767815443337,-500.0,0.00016438,2]
[400754557,1767815443346,-500.0,0.00016438,2]
[400754558,1767815443356,-500.0,0.00016438,2]
[400754559,1767815443365,-500.0,0.00016438,2]
[400754560,1767815443383,-500.0,0.00016438,2]
[400754561,1767815443394,-500.0,0.00016438,2]
[400754562,1767815443404,-500.0,0.00016438,2]
[400754563,1767815443413,-500.0,0.00016438,2]
[400754564,1767815443423,-500.0,0.00016438,2]
[400754566,1767815443433,-500.0,0.00016438,2]
[400754568,1767815443443,-500.0,0.00016438,2]
[400754570,1767815443453,-500.0,0.00016438,2]
[400754572,1767815443462,-500.0,0.00016438,2]
[400754574,1767815443472,-500.0,0.00016438,2]
[400754576,1767815443481,-500.0,0.00016438,2]
[400754578,1767815443491,-500.0,0.00016438,2]
[400754580,1767815443500,-500.0,0.00016438,2]
[400754582,1767815443509,-500.0,0.00016438,2]
[400754584,1767815443519,-500.0,0.00016438,2]
[400754586,1767815443528,-500.0,0.00016438,2]
[400754588,1767815443538,-500.0,0.00016438,2]
[400754590,1767815443547,-500.0,0.00016438,2]
[400754592,1767815443557,-500.0,0.00016438,2]
[400754594,1767815443567,-500.0,0.00016438,2]
[400754596,1767815443577,-365.50426396,0.00016438,2]
[400754598,1767815443587,-500.0,0.00016438,2]
[400754600,1767815443596,-3147.85810959,0.00016438,2]
[400754603,1767815443606,-3147.85810959,0.00016438,2]
[400754606,1767815443615,-3147.85810959,0.00016438,2]
[400754607,1767815443627,-3147.85810959,0.00016438,2]
[400754608,1767815443636,-3147.85810959,0.00016438,2]
[400754609,1767815443646,-3147.85810959,0.00016438,2]
[400754610,1767815443655,-3147.85810959,0.00016438,2]
[400754611,1767815443665,-3147.85810959,0.00016438,2]
[400754612,1767815443675,-3147.85810959,0.00016438,2]
[400754613,1767815443685,-3147.85810959,0.00016438,2]
[400754614,1767815443694,-3147.85810959,0.00016438,2]
[400754615,1767815443704,-3147.85810959,0.00016438,2]
[400754616,1767815443713,-3147.85810959,0.00016438,2]
[400754617,1767815443723,-3147.85810959,0.00016438,2]
[400754618,1767815443733,-3147.85810959,0.00016438,2]
[400754619,1767815443743,-3147.85810959,0.00016438,2]
[400754620,1767815443756,-3147.85810959,0.00016438,2]
[400754621,1767815443766,-3147.85810959,0.00016438,2]
[400754622,1767815443776,-3147.85810959,0.00016438,2]
[400754623,1767815443785,-3147.85810959,0.00016438,2]
[400754624,1767815443795,-3147.85810959,0.00016438,2]
[400754625,1767815443805,-3147.85810959,0.00016438,2]
[400754627,1767815443815,-3147.85810959,0.00016438,2]
[400754629,1767815443825,-3147.85810959,0.00016438,2]
[400754632,1767815443835,-3147.85810959,0.00016438,2]
[400754634,1767815443844,-3147.85810959,0.00016438,2]
[400754636,1767815443854,-3147.85810959,0.00016438,2]
[400754638,1767815443863,-3147.85810959,0.00016438,2]
[400754640,1767815443873,-3147.85810959,0.00016438,2]
[400754642,1767815443883,-3147.85810959,0.00016438,2]
[400754644,1767815443892,-3147.85810959,0.00016438,2]
[400754646,1767815443902,-3147.85810959,0.00016438,2]
[400754648,1767815443912,-3147.85810959,0.00016438,2]
[400754649,1767815443921,-3147.85810959,0.00016438,2]
[400754650,1767815443931,-3147.85810959,0.00016438,2]
[400754651,1767815443941,-3147.85810959,0.00016438,2]
[400754652,1767815443951,-3147.85810959,0.00016438,2]
[400754653,1767815443962,-3147.85810959,0.00016438,2]
[400754654,1767815443972,-3147.85810959,0.00016438,2]
[400754655,1767815443984,-3147.85810959,0.00016438,2]
[400754656,1767815443995,-3147.85810959,0.00016438,2]
[400754657,1767815444005,-3147.85810959,0.00016438,2]
[400754658,1767815444015,-3147.85810959,0.00016438,2]
[400754659,1767815444025,-3147.85810959,0.00016438,2]
[400754660,1767815444036,-3147.85810959,0.00016438,2]
[400754661,1767815444046,-3147.85810959,0.00016438,2]
[400754662,1767815444059,-3147.85810959,0.00016438,2]
[400754663,1767815444070,-3147.85810959,0.00016438,2]
[400754664,1767815444080,-3147.85810959,0.00016438,2]
[400754665,1767815444091,-3147.85810959,0.00016438,2]
[400754666,1767815444100,-3147.85810959,0.00016438,2]
[400754667,1767815444110,-3147.85810959,0.00016438,2]
[400754668,1767815444121,-3147.85810959,0.00016438,2]
[400754669,1767815444133,-3061.37849118,0.00016438,2]
[400754670,1767815444144,-3061.37849118,0.00016438,2]
[400754671,1767815444154,-3061.37849118,0.00016438,2]
[400754672,1767815444164,-3061.37849118,0.00016438,2]
[400754673,1767815444174,-3061.37849118,0.00016438,2]
[400754675,1767815444184,-3061.37849118,0.00016438,2]
[400754677,1767815444194,-3061.37849118,0.00016438,2]
[400754679,1767815444204,-3061.37849118,0.00016438,2]
[400754681,1767815444213,-3061.37849118,0.00016438,2]
[400754683,1767815444223,-3061.37849118,0.00016438,2]
[400754685,1767815444234,-3061.37849118,0.00016438,2]
[400754687,1767815444244,-3061.37849118,0.00016438,2]
[400754689,1767815444254,-3061.37849118,0.00016438,2]
[400754690,1767815444264,-800.0,0.00016438,2]
[400754692,1767815444274,-165.16,0.0001644,2]
[400754693,1767815444284,-455.32396504,0.00016454,2]
[400754694,1767815444295,-1000.0,0.00016454,2]
[400754695,1767815444306,-500.0,0.00016493,2]
[400754696,1767815444317,-1705.31,0.00016526,2]
[400754697,1767815444327,-1744.72667084,0.00016543,2]
[400754698,1767815444338,-500.0,0.00016548,2]
[400754699,1767815444348,-435.92,0.00016568,2]
[400754700,1767815444358,-188.33554362,0.00016602,2]
[400754701,1767815444370,-26694.90869383,0.00016611,2]
[400754702,1767815444380,-500.0,0.00016643,2]
[400754703,1767815444391,-507.8387061,0.00016643,2]
[400754704,1767815444401,-322.49416926,0.00016643,2]
[400754705,1767815444412,-500.0,0.00016643,2]
[400754706,1767815444422,-578.87202896,0.00016643,2]
[400754707,1767815444433,-360.78764565,0.00016643,2]
[400754708,1767815444444,-182.6941269,0.00016643,2]
[400754709,1767815444454,-500.0,0.00016643,2]
[400754710,1767815444465,-500.0,0.00016643,2]
[400754711,1767815444475,-500.0,0.00016643,2]
[400754712,1767815444486,-500.0,0.00016643,2]
[400754713,1767815444496,-500.0,0.00016643,2]
[400754715,1767815444506,-378.44615396,0.00016643,2]
[400754717,1767815444516,-500.0,0.00016643,2]
[400754719,1767815444526,-500.0,0.00016643,2]
[400754720,1767815444537,-628.50709886,0.00016643,2]
[400754721,1767815444547,-482.63,0.00016695,2]
[400754722,1767815444558,-165.12,0.00016712,2]
[400754723,1767815444569,-501.56852644,0.00016716,2]
[400754724,1767815444580,-2000.0,0.00016716,2]
[400754725,1767815444591,-2000.0,0.00016716,2]
[400754726,1767815444601,-2000.0,0.00016716,2]
[400754727,1767815444613,-2000.0,0.00016716,2]
[400754728,1767815444623,-2000.0,0.00016716,2]
[400754729,1767815444635,-876.44941512,0.00016716,2]
[400754730,1767815444646,-2000.0,0.00016716,2]
[400754731,1767815444657,-2000.0,0.00016716,2]
[400754732,1767815444668,-2000.0,0.00016716,2]
[400754733,1767815444678,-1744.72667082,0.00016769,2]
[400754734,1767815444688,-1705.31,0.000168,2]
[400754735,1767815444700,-617.40005154,0.0001684,2]
[400754736,1767815444710,-50734.67,0.00016986,2]
[400754737,1767815444720,-1744.72667082,0.00016995,2]
[400754738,1767815444731,-250.0,0.00017,2]
[400754739,1767815444742,-179.52010608,0.00017,2]
[400754740,1767815444752,-300.0,0.00017002,2]
[400754741,1767815444762,-300.0,0.0001702,2]
[400754742,1767815444771,-300.0,0.00017025,2]
[400754743,1767815444781,-736.0,0.0001703,2]
[400754744,1767815444791,-26694.90869383,0.00017041,2]
[400754745,1767815444801,-181.06,0.00017042,2]
[400754746,1767815444811,-300.0,0.0001706,2]
[400754747,1767815444822,-300.0,0.00017067,2]
[400754748,1767815444831,-1705.31,0.00017074,2]
[400754749,1767815444842,-610.85,0.0001708,2]
[400754750,1767815444852,-300.0,0.00017092,2]
[400754751,1767815444862,-300.0,0.00017095,2]
[400754752,1767815444872,-300.0,0.00017096,2]
[400754753,1767815444883,-500.0,0.00017099,2]
[400754754,1767815444893,-30000.0,0.000171,2]
[400754755,1767815444903,-334.5472959,0.00017113,2]
[400754756,1767815444913,-642.94,0.00017113,2]
[400754757,1767815444924,-287.61899177,0.00017113,2]
[400754758,1767815444934,-634.2954026,0.00017119,2]
[400754759,1767815444944,-300.0,0.0001712,2]
[400754760,1767815444954,-300.0,0.00017141,2]
[400754761,1767815444964,-300.0,0.00017173,2]
[400754763,1767815444974,-300.0,0.0001719,2]
[400754765,1767815444985,-299.888,0.00017191,2]
[400754766,1767815444995,-500.0,0.00017191,2]
[400754767,1767815445005,-847.22084679,0.00017191,2]
[400754768,1767815445015,-503.18143071,0.00017191,2]
[400754770,1767815445025,-300.0,0.00017205,2]
[400754772,1767815445035,-300.0,0.00017218,2]
[400754773,1767815445045,-300.0,0.0001722,2]
[400754774,1767815445058,-300.0,0.0001722,2]
[400754775,1767815445069,-1744.72667082,0.00017222,2]
[400754776,1767815445079,-300.0,0.00017223,2]
[400754777,1767815445089,-300.0,0.00017234,2]
[400754778,1767815445101,-300.0,0.00017236,2]
[400754779,1767815445111,-300.0,0.00017238,2]
[400754780,1767815445121,-300.0,0.00017238,2]
[400754781,1767815445132,-300.0,0.00017239,2]
[400754782,1767815445143,-300.0,0.00017244,2]
[400754783,1767815445153,-150.0,0.00017251,2]
[400754784,1767815445164,-300.0,0.00017254,2]
[400754785,1767815445174,-2500.0,0.00017264,2]
[400754786,1767815445184,-2408.10299042,0.00017264,2]
[400754787,1767815445195,-2612.33615182,0.00017264,2]
[400754788,1767815445205,-2500.0,0.00017264,2]
[400754789,1767815445216,-2321.53609261,0.00017264,2]
[400754790,1767815445226,-2500.0,0.00017264,2]
[400754791,1767815445237,-176.00349903,0.00017264,2]
[400754792,1767815445248,-2500.0,0.00017264,2]
[400754793,1767815445258,-300.0,0.00017271,2]
[400754794,1767815445268,-300.0,0.00017279,2]
[400754795,1767815445278,-300.0,0.00017286,2]
[400754796,1767815445289,-300.0,0.00017294,2]
[400754797,1767815445299,-300.0,0.00017301,2]
[400754798,1767815445309,-300.0,0.00017314,2]
[400754799,1767815445318,-435.92,0.00017321,2]
[400754800,1767815445328,-304.2281947,0.00017325,2]
[400754801,1767815445338,-300.0,0.00017327,2]
[400754802,1767815445348,-300.0,0.00017345,2]
[400754803,1767815445358,-300.0,0.00017347,2]
[400754804,1767815445368,-1705.31,0.00017348,2]
[400754805,1767815445378,-500.0,0.00017368,2]
[400754806,1767815445388,-300.0,0.0001738,2]
[400754807,1767815445398,-300.0,0.00017381,2]
[400754808,1767815445408,-640.24385345,0.00017388,2]
[400754809,1767815445418,-300.0,0.00017393,2]
[400754810,1767815445427,-300.0,0.000174,2]
[400754811,1767815445438,-300.0,0.00017425,2]
[400754812,1767815445450,-150.0,0.0001743,2]
[400754813,1767815445459,-300.0,0.00017436,2]
[400754814,1767815445469,-827.5,0.00017448,2]
[400754815,1767815445479,-300.0,0.00017452,2]
[400754816,1767815445489,-300.0,0.00017457,2]
[400754817,1767815445499,-1455.64956121,0.0001746,2]
[400754818,1767815445509,-150.0,0.00017467,2]
[400754819,1767815445520,-26694.90869383,0.0001747,2]
[400754820,1767815445531,-150.0,0.00017471,2]
[400754821,1767815445542,-300.0,0.00017475,2]
[400754822,1767815445553,-150.0,0.00017492,2]
[400754823,1767815445564,-300.0,0.00017497,2]
[400754824,1767815445574,-2000.0,0.000175,2]
[400754825,1767815445585,-300.0,0.00017501,2]
[400754826,1767815445595,-1688.95959214,0.00017502,2]
[400754827,1767815445607,-300.0,0.00017509,2]
[400754828,1767815445617,-150.0,0.00017518,2]
[400754829,1767815445628,-300.0,0.00017522,2]
[400754830,1767815445640,-150.0,0.00017523,2]
[400754831,1767815445650,-1040.82358149,0.00017534,2]
[400754832,1767815445663,-300.0,0.00017539,2]
[400754833,1767815445978,-300.0,0.00017554,2]
[400754834,1767815445988,-300.0,0.00017555,2]
[400754835,1767815445998,-603.0,0.00017558,2]
[400754836,1767815446008,-300.0,0.00017563,2]
[400754837,1767815446018,-300.0,0.00017571,2]
[400754838,1767815446028,-150.0,0.00017572,2]
[400754839,1767815446038,-300.0,0.00017573,2]
[400754840,1767815446048,-300.0,0.00017575,2]
[400754841,1767815446062,-300.0,0.00017577,2]
[400754842,1767815446073,-300.0,0.00017578,2]
[400754843,1767815446083,-300.0,0.00017579,2]
[400754844,1767815446093,-603.0,0.00017584,2]
[400754845,1767815446104,-300.0,0.00017596,2]
[400754846,1767815446114,-300.0,0.00017598,2]
[400754847,1767815446124,-1000.0,0.000176,2]
[400754848,1767815446134,-300.0,0.00017604,2]
[400754849,1767815446144,-603.0,0.00017606,2]
[400754850,1767815446154,-300.0,0.0001761,2]
[400754851,1767815446164,-300.0,0.00017613,2]
[400754852,1767815446175,-300.0,0.00017618,2]
[400754853,1767815446185,-300.0,0.00017619,2]
[400754854,1767815446195,-300.0,0.00017621,2]
[400754855,1767815446205,-1705.31,0.00017622,2]
[400754856,1767815446215,-150.0,0.00017637,2]
[400754857,1767815446224,-500.0,0.00017639,2]
[400754858,1767815446234,-500.0,0.00017639,2]
[400754859,1767815446244,-300.0,0.00017639,2]
[400754860,1767815446254,-8547.72063637,0.0001764,2]
[400754861,1767815446265,-482.63,0.0001765,2]
[400754862,1767815446275,-482.63,0.0001765,2]
[400754863,1767815446285,-482.63,0.0001765,2]
[400754864,1767815446295,-482.63,0.0001765,2]
[400754865,1767815446307,-482.63,0.0001765,2]
[400754866,1767815446316,-482.63,0.0001765,2]
[400754867,1767815446326,-482.63,0.0001765,2]
[400754868,1767815446335,-991.17,0.0001765,2]
[400754869,1767815446345,-482.63,0.0001765,2]
[400754870,1767815446354,-482.63,0.0001765,2]
[400754871,1767815446364,-482.63,0.0001765,2]
[400754872,1767815446373,-482.63,0.0001765,2]
[400754873,1767815446384,-482.63,0.0001765,2]
[400754874,1767815446396,-482.63,0.0001765,2]
[400754875,1767815446407,-482.63,0.0001765,2]
[400754876,1767815446418,-482.63,0.0001765,2]
[400754877,1767815446428,-823.0,0.00017664,2]
[400754878,1767815446438,-300.0,0.00017681,2]
[400754880,1767815446447,-150.0,0.00017691,2]
[400754882,1767815446457,-300.0,0.00017692,2]
[400754884,1767815446467,-300.0,0.00017701,2]
[400754886,1767815446476,-300.0,0.00017703,2]
[400754888,1767815446486,-150.0,0.00017705,2]
[400754890,1767815446495,-300.0,0.00017709,2]
[400754892,1767815446505,-300.0,0.00017711,2]
[400754894,1767815446514,-300.0,0.00017737,2]
[400754896,1767815446524,-25000.0,0.00017742,3]
[400754898,1767815446533,-300.0,0.00017744,2]
[400754900,1767815446543,-25000.0,0.0001775,3]
[400754902,1767815446552,-300.0,0.00017752,2]
[400754904,1767815446562,-150.0,0.00017753,2]
[400754906,1767815446571,-25000.0,0.00017759,3]
[400754910,1767815446581,-300.0,0.00017762,2]
[400754912,1767815446590,-610.85,0.00017767,2]
[400754914,1767815446600,-25000.0,0.00017768,3]
[400754916,1767815446609,-181.06,0.00017775,2]
[400754917,1767815446618,-151.57655384,0.00017775,2]
[400754919,1767815446628,-10000.0,0.00017775,2]
[400754921,1767815446637,-500.0,0.00017776,2]
[400754923,1767815446646,-25000.0,0.00017777,3]
[400754925,1767815446656,-25000.0,0.00017786,3]
[400754927,1767815446665,-25000.0,0.00017794,3]
[400754929,1767815446675,-150.0,0.00017798,2]
[400754930,1767815446684,-181.06,0.00017798,2]
[400754933,1767815446693,-1000.0,0.000178,2]
[400754935,1767815446703,-3498.918,0.00017803,2]
[400754936,1767815446712,-221.913,0.00017803,2]
[400754939,1767815446721,-25000.0,0.00017803,3]
[400754941,1767815446732,-603.0,0.00017804,2]
[400754943,1767815446741,-25000.0,0.00017812,3]
[400754945,1767815446750,-300.0,0.00017812,2]
[400754947,1767815446759,-300.0,0.00017812,2]
[400754949,1767815446770,-2505.38555235,0.00017812,2]
[400754951,1767815446779,-3000.0,0.00017812,2]
[400754953,1767815446789,-1652.22115376,0.00017812,2]
[400754955,1767815446799,-3000.0,0.00017812,2]
[400754957,1767815446808,-300.0,0.00017816,2]
[400754959,1767815446818,-300.0,0.00017817,2]
[400754961,1767815446827,-7419.99154,0.0001782,2]
[400754963,1767815446836,-7419.99154,0.0001782,2]
[400754965,1767815446845,-25000.0,0.00017821,3]
[400754967,1767815446855,-300.0,0.00017821,2]
[400754969,1767815446864,-25000.0,0.0001783,3]
[400754971,1767815446873,-261.94980575,0.0001783,2]
[400754973,1767815446883,-7419.99154,0.0001783,2]
[400754975,1767815446892,-300.0,0.00017831,2]
[400754976,1767815446901,-151.0,0.00017835,2]
[400754979,1767815446911,-610.85,0.00017838,2]
[400754981,1767815446920,-25000.0,0.00017838,3]
[400754982,1767815446930,-150.0,0.0001784,2]
[400754984,1767815446939,-150.0,0.0001784,2]
[400754986,1767815446948,-300.0,0.00017843,2]
[400754988,1767815446958,-500.0,0.00017846,2]
[400754989,1767815446968,-25000.0,0.00017847,3]
[400754990,1767815446978,-3292.0,0.00017848,2]
[400754991,1767815446988,-200.0,0.00017855,2]
[400754992,1767815446998,-200.0,0.00017856,2]
[400754993,1767815447008,-25000.0,0.00017856,3]
[400754994,1767815447017,-200.0,0.00017856,2]
[400754995,1767815447027,-200.0,0.00017856,2]
[400754996,1767815447036,-300.0,0.00017856,2]
[400754997,1767815447046,-7419.99155,0.0001786,2]
[400754998,1767815447058,-300.0,0.00017863,2]
[400754999,1767815447067,-25000.0,0.00017865,3]
[400755000,1767815447077,-25000.0,0.00017874,3]
[400755001,1767815447086,-603.0,0.00017877,2]
[400755002,1767815447097,-7419.99154,0.0001788,2]
[400755003,1767815447108,-500.0,0.00017882,2]
[400755004,1767815447118,-25000.0,0.00017882,3]
[400755005,1767815447130,-189.05,0.0001789,2]
[400755006,1767815447141,-1000.0,0.0001789,2]
[400755007,1767815447152,-1000.0,0.0001789,2]
[400755008,1767815447163,-630.21,0.0001789,2]
[400755009,1767815447173,-25000.0,0.00017891,3]
[400755010,1767815447182,-226.0,0.00017895,2]
[400755011,1767815447193,-1705.31,0.00017896,2]
[400755012,1767815447203,-300.0,0.00017897,2]
[400755013,1767815447214,-419.33594592,0.00017898,2]
[400755014,1767815447224,-400.58303632,0.00017899,2]
[400755015,1767815447235,-150.0,0.00017899,2]
[400755016,1767815447245,-610.85,0.00017899,2]
[400755017,1767815447255,-25000.0,0.000179,3]
[400755018,1767815447264,-1000.0,0.000179,2]
[400755019,1767815447274,-634.2954026,0.000179,2]
[400755020,1767815447285,-1290.38238118,0.000179,2]
[400755021,1767815447295,-14633.43151327,0.000179,3]
[400755022,1767815447306,-26694.90869383,0.000179,2]
[400755023,1767815447316,-11707.23947328,0.000179,2]
[400755024,1767815447326,-10740.0,0.000179,2]
[400755025,1767815447336,-300.0,0.00017906,2]
[400755026,1767815447346,-7419.99154,0.0001791,2]
[400755027,1767815447357,-300.0,0.00017911,2]
[400755028,1767815447367,-150.0,0.00017912,2]
[400755029,1767815447376,-558.08,0.00017915,2]
[400755030,1767815447387,-300.0,0.0001792,2]
[400755031,1767815447397,-300.0,0.00017928,2]
[400755032,1767815447407,-300.0,0.0001793,2]
[400755033,1767815447417,-663.93287602,0.00017936,2]